fUSD/lending_fUSD_20240625
["ID","MTS","AMOUNT","RATE_DAILY","PERIOD"]
[330348020,1719285042827,-333.50716187,0.0002289,2]
[330348021,1719285042836,-1000.0,0.0002289,2]
[330348022,1719285042845,-19353.9406,0.0002289,2]
[330348023,1719285042862,-1763.7025,0.0002289,2]
[330348024,1719285042883,-190.33836462,0.00022962,2]
[330348025,1719285042901,-266.10463106,0.00022962,2]
[330348026,1719285042921,-854.55128571,0.00022966,2]
[330348027,1719285042942,-156.7722868,0.00022966,2]
[330348028,1719285042960,-715.80566214,0.00022967,2]
[330348029,1719285042979,-365.347803,0.00022968,2]
[330348030,1719285042997,-163.20806949,0.00022983,2]
[330348031,1719285043012,-4814.1246312,0.00022984,2]
[330348032,1719285043031,-2221.5765445,0.00022984,2]
[330348033,1719285043050,-21242.6094467,0.00022984,2]
[330348034,1719285043067,-849.41768,0.00022984,2]
[330348035,1719285043081,-957.8484246,0.00022984,2]
[330348036,1719285043099,-246.34734534,0.00022985,2]
[330348037,1719285043113,-26138.39168717,0.0002299,7]
[330348038,1719285043130,-75046.7143679,0.0002299,5]
[330348039,1719285043154,-109950.585911,0.0002299,5]
[330348040,1719285043337,-667.34675804,0.00017181,2]
[330348041,1719285043355,-1769.57324196,0.00017181,2]
[330348042,1719285043371,-176.03278132,0.0002,2]
[330348043,1719285043385,-176.03278132,0.0002,2]
[330348044,1719285043401,-176.03278132,0.0002,2]
[330348045,1719285043416,-34591.079551,0.0002299,5]
[330348046,1719285043434,-499.9996419,0.0002299,5]
[330348047,1719285043452,-59622.85528959,0.0002299,5]
[330348048,1719285043470,-72743.25437709,0.0002299,5]
[330348049,1719285043488,-6668.21003576,0.0002299,5]
[330348050,1719285043505,-2131.57749722,0.0002299,5]
[330348051,1719285043523,-264.50884964,0.0002299,5]
[330348055,1719285044465,-933.38175129,0.0001992,2]
[330348077,1719285045502,-259.02851092,0.0001992,2]
[330348078,1719285045515,-1244.50973779,0.0001992,2]
[330348079,1719285045524,-176.03278132,0.0002,2]
[330348080,1719285045533,-176.03278132,0.0002,2]
[330348081,1719285045543,-176.03278132,0.0002,2]
[330348082,1719285045552,-176.03278132,0.0002,2]
[330348083,1719285045567,-176.03278132,0.0002,2]
[330348084,1719285045576,-176.03278132,0.0002,2]
[330348085,1719285045586,-176.03278132,0.0002,2]
[330348086,1719285045595,-176.03278132,0.0002,2]
[330348087,1719285045606,-176.03278132,0.0002,2]
[330348088,1719285045616,-176.03278132,0.0002,2]
[330348089,1719285045625,-176.03278132,0.0002,2]
[330348090,1719285045634,-176.03278132,0.0002,2]
[330348091,1719285045646,-2828.45274486,0.00021999,2]
[330348092,1719285045656,-301.63,0.00022164,2]
[330348093,1719285045666,-708.08,0.00022164,2]
[330348094,1719285045675,-293.12,0.00022164,2]
[330348095,1719285045684,-328.95,0.00022164,2]
[330348096,1719285045693,-806.45,0.00022164,2]
[330348097,1719285045702,-2791.42364177,0.0002247,2]
[330348098,1719285045711,-2436.92,0.0002266,2]
[330348099,1719285045720,-314.94682603,0.0002299,5]
[330348100,1719285045730,-526433.31339524,0.0002299,5]
[330348101,1719285045742,-775.0,0.0002299,5]
[330348102,1719285045753,-10000.0,0.0002299,5]
[330348103,1719285045765,-1175.26064,0.0002299,5]
[330348104,1719285045776,-8922.08928851,0.0002299,5]
[330348105,1719285045787,-1315.02723563,0.0002299,5]
[330348106,1719285045800,-497.69162797,0.0002299,5]
[330348107,1719285045813,-855.62630079,0.0002299,5]
[330348108,1719285045824,-352.72799642,0.0002299,5]
[330348109,1719285045836,-372.82318046,0.0002299,5]
[330348110,1719285045847,-1006.3525,0.0002299,5]
[330348111,1719285045858,-654.02,0.0002299,5]
[330348112,1719285046065,-5068.55999995,0.0002299,5]
[330348113,1719285046088,-0.00535548,0.0002299,5]
[330348114,1719285046100,-2057.68149798,0.0002299,5]
[330348115,1719285046230,-176.03278132,0.0002,2]
[330348116,1719285046239,-176.03278132,0.0002,2]
[330348117,1719285046248,-2147329.47549343,0.0002299,5]
[330348118,1719285046263,-188113.60011054,0.0002299,5]
[330348119,1719285046274,-818.84263907,0.0002299,5]
[330348120,1719285046288,-660.19,0.0002299,5]
[330348121,1719285046299,-2084.09343301,0.0002299,5]
[330348122,1719285046314,-15579.20194805,0.0002299,5]
[330348123,1719285046325,-1340.00000071,0.0002299,5]
[330348124,1719285046336,-6789.55579907,0.0002299,5]
[330348125,1719285046347,-1798.58275583,0.0002299,5]
[330348126,1719285046362,-421.401,0.0002299,5]
[330348182,1719285047274,-176.03278132,0.0002,2]
[330348184,1719285047284,-176.03278132,0.0002,2]
[330348186,1719285047294,-176.03278132,0.0002,2]
[330348188,1719285047303,-176.03278132,0.0002,2]
[330348190,1719285047313,-176.03278132,0.0002,2]
[330348192,1719285047323,-17855.00682698,0.0002299,5]
[330348193,1719285047334,-2550.53219726,0.0002299,5]
[330348194,1719285047345,-2849.692,0.0002299,5]
[330348195,1719285047356,-3575.3511807,0.0002299,5]
[330348196,1719285047368,-1825.79,0.0002299,5]
[330348197,1719285047379,-1300.0000002,0.0002299,5]
[330348198,1719285047390,-647.51,0.0002299,5]
[330348199,1719285047402,-579.57500579,0.0002299,5]
[330348200,1719285047414,-524.35130645,0.0002299,5]
[330348201,1719285047651,-2e-08,0.0002299,5]
[330348202,1719285047663,-30511.32139743,0.0002299,5]
[330348203,1719285047676,-4021.91980678,0.0002299,5]
[330348204,1719285047688,-854.0,0.0002299,5]
[330348205,1719285047699,-3728.44750531,0.0002299,5]
[330348206,1719285047711,-393.76878671,0.0002299,5]
[330348207,1719285047723,-306.21779093,0.0002299,5]
[330348208,1719285047735,-880.88,0.0002299,5]
[330348209,1719285047748,-10391.97917367,0.0002299,5]
[330348210,1719285047759,-404.19875427,0.0002299,5]
[330348211,1719285047770,-483.87719183,0.0002299,5]
[330348212,1719285047782,-1094191.96338352,0.0002299,5]
[330348213,1719285047793,-428.55791539,0.0002299,5]
[330348214,1719285047805,-377.28,0.0002299,5]
[330348215,1719285047819,-670.5,0.0002299,5]
[330348216,1719285047830,-12457.34408979,0.0002299,5]
[330348217,1719285047841,-905.72771757,0.0002299,5]
[330348218,1719285047853,-14709.9923619,0.0002299,5]
[330348219,1719285047867,-196267.7110638,0.0002299,5]
[330348220,1719285060046,202.36285722,0.00010959,2]
[330348222,1719285194719,200.0,0.00025434,120]
[330348223,1719285200018,202.962292,0.00025075,120]
[330348224,1719286011916,-150.0,0.00011198,2]
[330348225,1719286011941,-300.0,0.00011198,2]
[330348226,1719286011966,-109093.0,0.00011199,2]
[330348227,1719286151614,-150.0,0.00011198,2]
[330348228,1719286151638,-251268.17927491,0.00011199,2]
[330348229,1719286159384,-51460.621,0.00011199,2]
[330348230,1719286164120,-1488.92232631,0.00011199,2]
[330348231,1719286164150,-134373.27388162,0.00011199,2]
[330348232,1719286164173,-263.77000523,0.00011199,2]
[330348233,1719286164196,-7279.01334669,0.00011199,2]
[330348234,1719286164218,-155.0,0.00011199,2]
[330348235,1719286232216,-1517.6786,0.00013133,2]
[330348238,1719286232226,-4138.68072623,0.00013574,2]
[330348264,1719286234335,-100673.67173887,0.00013574,2]
[330348265,1719286234400,-40.97080003,0.00013574,2]
[330348266,1719286234414,-45169.29161815,0.00013574,2]
[330348267,1719286234426,-979.38,0.00013574,2]
[330348268,1719286234438,-1898.3477175,0.00013574,2]
[330348269,1719286234450,-16272.9283354,0.00013574,2]
[330348270,1719286234462,-1891.95350454,0.00013574,2]
[330348271,1719286234474,-15366.75,0.00013574,2]
[330348275,1719286239438,-1326.97245094,0.00013503,2]
[330348276,1719286239449,-67771.65898429,0.00013574,2]
[330348283,1719286240835,-49780.43770584,0.00013574,2]
[330348284,1719286240849,-646.29359156,0.00013574,2]
[330348287,1719286243104,-243053.63176043,0.00013574,2]
[330348290,1719286243116,-155.0,0.00013574,2]
[330348292,1719286243126,-177.4904,0.00013644,2]
[330348295,1719286243141,-161.4549536,0.00013799,2]
[330348297,1719286243151,-1488.71,0.0001459,2]
[330348298,1719286243162,-10000.0,0.00016502,2]
[330348299,1719286243172,-215.94,0.00016712,2]
[330348300,1719286243183,-611.75,0.00017172,2]
[330348301,1719286243193,-217.82,0.00017534,2]
[330348302,1719286243203,-5722.73,0.00017534,2]
[330348303,1719286243213,-150.0,0.00018568,2]
[330348304,1719286243224,-205.3,0.0001864,2]
[330348305,1719286243235,-492.72,0.00018684,2]
[330348306,1719286243245,-807.28,0.00018975,2]
[330348307,1719286243256,-250.0,0.00018994,2]
[330348308,1719286243268,-759.8,0.00019056,2]
[330348309,1719286243279,-200.0,0.00019064,2]
[330348310,1719286243289,-3507.56,0.00019083,2]
[330348311,1719286243300,-23900.0,0.00019119,2]
[330348312,1719286243311,-1000.0,0.00019119,2]
[330348313,1719286243321,-250.0,0.00019133,2]
[330348314,1719286243333,-5351.06,0.00019178,2]
[330348315,1719286243343,-250.0,0.00019178,2]
[330348316,1719286243354,-611.75,0.00019436,2]
[330348317,1719286243365,-168.7,0.00019538,2]
[330348318,1719286243376,-167.0,0.00019545,2]
[330348319,1719286243386,-205.3,0.00019611,2]
[330348320,1719286243396,-1011.64476456,0.00019644,2]
[330348321,1719286243407,-200.0,0.00019669,2]
[330348322,1719286243419,-807.28,0.00019924,2]
[330348323,1719286243429,-167.0,0.0002019,2]
[330348324,1719286243440,-171.93,0.00020548,2]
[330348325,1719286243451,-300.0,0.00020798,2]
[330348326,1719286243462,-150.0,0.00020829,2]
[330348327,1719286243473,-167.0,0.00020835,2]
[330348328,1719286243483,-807.28,0.00020873,2]
[330348329,1719286243494,-474.28975858,0.00020889,2]
[330348330,1719286243504,-1250.0,0.00021,2]
[330348331,1719286243516,-422.455143,0.00021096,2]
[330348332,1719286243525,-172.99,0.000213,2]
[330348333,1719286243537,-157.272449,0.0002143,2]
[330348334,1719286243547,-180.058983,0.0002143,2]
[330348335,1719286243558,-168.925872,0.0002143,2]
[330348336,1719286243568,-180.895998,0.0002143,2]
[330348337,1719286243579,-167.0,0.0002148,2]
[330348338,1719286243590,-1000.0,0.00021508,2]
[330348339,1719286243600,-153.02,0.00021644,2]
[330348340,1719286243610,-381.03,0.00021644,2]
[330348341,1719286243621,-611.75,0.000217,2]
[330348342,1719286243632,-807.28,0.00021822,2]
[330348343,1719286243643,-3507.56,0.00021823,2]
[330348344,1719286243654,-199.59,0.00021918,2]
[330348345,1719286243664,-422.455143,0.00021918,2]
[330348346,1719286243675,-191.33,0.00021958,2]
[330348347,1719286243685,-1817.87,0.00022027,2]
[330348348,1719286243696,-167.0,0.00022125,2]
[330348349,1719286243706,-354.39,0.00022164,2]
[330348350,1719286243716,-151.63,0.00022164,2]
[330348351,1719286243727,-164.65,0.00022164,2]
[330348352,1719286243737,-166.57,0.00022164,2]
[330348353,1719286243747,-300.0,0.00022164,2]
[330348354,1719286243758,-423.79,0.00022164,2]
[330348355,1719286243768,-423.79,0.00022164,2]
[330348356,1719286243780,-150.0,0.00022164,2]
[330348357,1719286243790,-164.65,0.00022164,2]
[330348358,1719286243800,-150.0,0.00022164,2]
[330348359,1719286243811,-354.39,0.00022164,2]
[330348360,1719286243821,-150.0,0.00022164,2]
[330348361,1719286243832,-354.39,0.00022164,2]
[330348362,1719286243842,-423.79,0.00022164,2]
[330348363,1719286243851,-156.27,0.00022164,2]
[330348364,1719286243860,-527.79,0.00022164,2]
[330348365,1719286243870,-150.0,0.00022164,2]
[330348366,1719286243880,-527.79,0.00022164,2]
[330348367,1719286243890,-354.39,0.00022164,2]
[330348368,1719286243900,-150.0,0.00022164,2]
[330348369,1719286243909,-150.0,0.00022164,2]
[330348370,1719286243919,-382.06,0.00022164,2]
[330348371,1719286243929,-527.79,0.00022164,2]
[330348372,1719286243938,-150.0,0.00022164,2]
[330348373,1719286243950,-354.39,0.00022164,2]
[330348374,1719286243963,-527.79,0.00022164,2]
[330348375,1719286243973,-150.0,0.00022164,2]
[330348376,1719286243984,-321.76,0.00022164,2]
[330348377,1719286243996,-150.0,0.00022164,2]
[330348378,1719286244006,-527.79,0.00022164,2]
[330348379,1719286244016,-150.0,0.00022164,2]
[330348380,1719286244028,-150.0,0.00022164,2]
[330348381,1719286244038,-300.0,0.00022168,2]
[330348382,1719286244048,-151.59,0.00022438,2]
[330348383,1719286244059,-150.0,0.00022438,2]
[330348384,1719286244068,-150.0,0.00022438,2]
[330348385,1719286244078,-150.0,0.00022438,2]
[330348386,1719286244088,-157.272449,0.00022501,2]
[330348387,1719286244098,-168.925872,0.00022501,2]
[330348388,1719286244108,-415.82908845,0.00022525,2]
[330348389,1719286244118,-200.33008591,0.00022635,2]
[330348390,1719286244128,-500.0,0.00022654,2]
[330348391,1719286244138,-558.43406359,0.00022654,2]
[330348392,1719286244148,-469.93631816,0.00022654,2]
[330348393,1719286244158,-106825.14629589,0.00022655,2]
[330348394,1719286244475,-200.33008587,0.00022671,2]
[330348395,1719286244487,-1250.0,0.000227,2]
[330348396,1719286244498,-200.33008587,0.00022708,2]
[330348397,1719286244508,-527.74,0.00022735,2]
[330348398,1719286244518,-527.74,0.00022735,2]
[330348399,1719286244529,-527.74,0.00022735,2]
[330348400,1719286244539,-527.74,0.00022735,2]
[330348401,1719286244550,-422.455143,0.0002274,2]
[330348402,1719286244565,-200.33008587,0.00022744,2]
[330348403,1719286244576,-1055.14,0.00022748,2]
[330348404,1719286244585,-1067.04,0.00022748,2]
[330348405,1719286244596,-677.69,0.00022748,2]
[330348406,1719286244606,-527.74,0.00022748,2]
[330348407,1719286244616,-1340.45084067,0.00022759,2]
[330348409,1719286244625,-1586.18536,0.0002276,2]
[330348410,1719286244634,-167.0,0.0002277,2]
[330348411,1719286244644,-807.28,0.0002277,2]
[330348412,1719286244654,-200.33008587,0.00022781,2]
[330348414,1719286244664,-1792.72734073,0.0002279,2]
[330348416,1719286244674,-500.0,0.00022801,2]
[330348418,1719286244684,-200.0,0.00022801,2]
[330348419,1719286244697,-156.03660824,0.00022805,2]
[330348420,1719286244706,-200.33008587,0.00022817,2]
[330348421,1719286244716,-326.77694798,0.00022853,2]
[330348422,1719286244727,-200.33008587,0.00022854,2]
[330348423,1719286244736,-1000.0,0.0002287,2]
[330348424,1719286244746,-1000.0,0.0002287,2]
[330348425,1719286244756,-1000.0,0.0002287,2]
[330348426,1719286244766,-1000.0,0.0002287,2]
[330348427,1719286244776,-1051.2857,0.0002287,2]
[330348428,1719286244788,-266.10463106,0.00022879,2]
[330348429,1719286244798,-266.10463106,0.00022879,2]
[330348430,1719286244809,-12780.11697867,0.00022884,3]
[330348431,1719286244819,-475.77216433,0.00022884,2]
[330348432,1719286244830,-4874.30851883,0.00022884,2]
[330348433,1719286244841,-155.69120155,0.00022884,2]
[330348434,1719286244851,-430.47767915,0.00022884,2]
[330348435,1719286244862,-2791.42364177,0.00022884,2]
[330348436,1719286244872,-4874.30851881,0.00022885,2]
[330348437,1719286244883,-5000.0,0.00022885,2]
[330348438,1719286244894,-4874.30851881,0.00022885,2]
[330348439,1719286244905,-3974.20879947,0.00022885,2]
[330348440,1719286244915,-155.0,0.00022885,2]
[330348441,1719286244925,-2828.45274486,0.00022885,2]
[330348442,1719286244936,-4874.30851881,0.00022886,2]
[330348443,1719286244946,-155.27941633,0.00022886,2]
[330348444,1719286244957,-298.13977936,0.00022886,2]
[330348445,1719286244971,-4874.30851881,0.00022886,2]
[330348446,1719286244981,-155.22142253,0.00022886,2]
[330348447,1719286244992,-690.10215601,0.00022886,2]
[330348448,1719286245004,-4874.30851881,0.00022887,2]
[330348449,1719286245014,-155.0891011,0.00022887,2]
[330348450,1719286245026,-4874.30851881,0.00022887,2]
[330348451,1719286245037,-328.40415863,0.00022887,2]
[330348452,1719286245048,-4874.30851881,0.00022888,2]
[330348453,1719286245060,-412.55586859,0.00022888,2]
[330348454,1719286245070,-329.290855,0.00022888,2]
[330348455,1719286245080,-4874.30851881,0.00022888,2]
[330348456,1719286245090,-4874.30851881,0.00022889,2]
[330348457,1719286245100,-3091.18171214,0.00022889,2]
[330348458,1719286245395,-1052.24,0.00022735,2]
[330348459,1719286245406,-1638.52621194,0.00022889,2]
[330348460,1719286245418,-144.60059473,0.00022889,2]
[330348461,1719286245428,-1020.23313479,0.0002289,2]
[330348462,1719286245440,-126.27068149,0.0002289,2]
[330348463,1719286245450,-4874.30851881,0.0002289,2]
[330348464,1719286245460,-161.4549536,0.0002289,2]
[330348465,1719286245470,-200.33008587,0.0002289,2]
[330348466,1719286245480,-187.94201045,0.00022899,2]
[330348467,1719286245490,-600.0,0.000229,3]
[330348468,1719286245500,-159.45136522,0.00022959,2]
[330348469,1719286245510,-155.1650936,0.0002296,2]
[330348470,1719286245520,-529.45732001,0.00022961,2]
[330348471,1719286245530,-157.71096399,0.00022973,2]
[330348472,1719286245540,-155.24058437,0.00022973,2]
[330348473,1719286245550,-2663.72237679,0.00022974,2]
[330348474,1719286245563,-9680.88292959,0.00022974,2]
[330348475,1719286245572,-701.62089435,0.0002298,2]
[330348476,1719286245582,-241.36579323,0.00022983,2]
[330348477,1719286245592,-167.96362675,0.00022983,2]
[330348478,1719286245602,-1483.8571936,0.00022984,2]
[330348479,1719286245612,-33047.9443443,0.00022984,2]
[330348480,1719286245622,-2406.952691,0.00022984,2]
[330348481,1719286245632,-2523.7683134,0.00022984,2]
[330348482,1719286245642,-314.40646483,0.00022984,2]
[330348483,1719286245652,-1220376.5965094,0.00022986,2]
[330348484,1719286245840,-678.55223509,0.00016502,2]
[330348485,1719286245852,-676.29915087,0.00016502,2]
[330348486,1719286245864,-8645.14861404,0.00016502,2]
[330348487,1719286245873,-39525.80835021,0.00022986,2]
[330348488,1719286246013,-175.20875585,0.00019426,2]
[330348489,1719286246024,-155.34957523,0.00022885,2]
[330348490,1719286246035,-43105.75591364,0.00022986,2]
[330348491,1719286246048,-4254.11158289,0.00022986,2]
[330348493,1719286246656,-92164.47232642,0.00022986,2]
[330348494,1719286246668,-1011.6724071,0.00022986,2]
[330348495,1719286246680,-2055.95637963,0.00022986,2]
[330348496,1719286246692,-1836.59298072,0.00022986,2]
[330348497,1719286246703,-2211.876,0.00022986,2]
[330348498,1719286246715,-585.22668101,0.00022986,2]
[330348499,1719286246728,-283218.72954716,0.00022986,2]
[330348500,1719286246737,-365.347803,0.00022989,2]
[330348501,1719286246747,-13333.39471656,0.0002299,7]
[330348502,1719286246756,-314.94682603,0.0002299,5]
[330348503,1719286246766,-315717.06225244,0.0002299,5]
[330348504,1719286246778,-375.93228978,0.0002299,5]
[330348505,1719286246790,-52385.1354191,0.0002299,5]
[330348506,1719286247023,-983.86902031,0.00016502,2]
[330348507,1719286247036,-1232.59825842,0.00016502,2]
[330348508,1719286247049,-4793.95028245,0.00016502,2]
[330348509,1719286247060,-500.0,0.00019178,2]
[330348510,1719286247070,-198.02663028,0.00019178,2]
[330348511,1719286247079,-437.52398406,0.00019178,2]
[330348512,1719286247091,-1340.45084067,0.00022747,2]
[330348513,1719286247101,-175.20875585,0.0002298,2]
[330348514,1719286247111,-97701.06970005,0.0002299,5]
[330348515,1719286336145,848.0,0.00011199,2]
[330348516,1719286394586,200.0,0.00025673,120]
[330348517,1719286435359,5905.5276824,9e-05,2]
[330348519,1719286471482,14328.72565259,6.94e-05,2]
[330348520,1719286508940,1407.58584989,6.94e-05,2]
[330348521,1719286509248,155.0,6.94e-05,2]
[330348522,1719286543748,155.0,8.412e-05,2]
[330348523,1719286584047,157.49283754,0.00010196,2]
[330348524,1719286585105,19606.28873825,0.00010196,2]
[330348532,1719286809922,2438.11409766,0.00010196,2]
[330348533,1719286811794,1000.0,0.00024,30]
[330348534,1719286815415,552.51494431,0.00010196,2]
[330348536,1719286819702,13.8441528,0.00024,30]
[330348537,1719286846952,155.79798959,0.00010196,2]
[330348538,1719286852702,181.33957355,0.00010196,2]
[330348539,1719286866093,219.2605486,0.00010196,2]
[330348540,1719286872599,1000.0,0.0002001,28]
[330348541,1719286891269,305.64375524,0.00010196,2]
[330348542,1719286952958,439.69862548,0.00010196,2]
[330348543,1719286996715,311.19639502,0.00010196,2]
[330348544,1719287007083,810.0,0.0002001,28]
[330348545,1719287067663,750.88,9.534e-05,2]
[330348546,1719287235280,-637.91587805,0.0001079,2]
[330348547,1719287366190,-7927.0,0.00010758,2]
[330348548,1719287366236,-307.562136,0.0001079,2]
[330348549,1719287366277,-589.78296349,0.00010845,2]
[330348550,1719287366315,-1183.54623426,0.00010845,2]
[330348551,1719287366360,-2374.86184575,0.00011,2]
[330348552,1719287366395,-828.92054796,0.000111,2]
[330348553,1719287366444,-150.0,0.00011178,2]
[330348554,1719287366487,-102366.17627254,0.00011199,2]
[330348562,1719287433352,-389.00967572,0.000111,2]
[330348563,1719287433505,-94.56139124,0.000111,2]
[330348564,1719287433515,-941.40654204,0.00011199,2]
[330348565,1719287433527,-588.74678369,0.00011199,2]
[330348566,1719287433540,-2009.17611856,0.00011199,2]
[330348567,1719287433552,-280242.15090116,0.00011199,2]
[330348568,1719287433564,-2579.13024288,0.00011199,2]
[330348569,1719287433611,-442.695,0.00011199,2]
[330348570,1719287434522,-100673.67173887,0.00011199,2]
[330348571,1719287434534,-4943.83845254,0.00011199,2]
[330348572,1719287434546,-670.78694448,0.00011199,2]
[330348573,1719287434620,-1310.65914409,0.00011199,2]
[330348574,1719287434631,-30775.0,0.00011199,2]
[330348575,1719287434643,-538.30041497,0.00011199,2]
[330348587,1719287437796,-19079.65968483,0.00011199,2]
[330348589,1719287437808,-522.59824219,0.00011199,2]
[330348591,1719287437817,-1101.96993289,0.000112,2]
[330348594,1719287437829,-280.65263567,0.000112,2]
[330348596,1719287437840,-959.26636,0.000112,2]
[330348601,1719287437895,270.4551539,0.00026,120]
[330348603,1719287437908,-1242.44162706,0.000112,2]
[330348612,1719287438012,-0.00683454,0.000112,2]
[330348614,1719287438029,-8647.93000314,0.000112,2]
[330348616,1719287438039,-1927.87,0.000112,2]
[330348617,1719287438049,-300.6,0.000112,2]
[330348618,1719287438060,-1453.59999686,0.000112,2]
[330348650,1719287439984,-2651.53000314,0.000112,2]
[330348651,1719287439994,-400.0,0.00011237,2]
[330348652,1719287440003,-2136.56,0.00011259,2]
[330348653,1719287440013,-8393.44,0.00011324,2]
[330348654,1719287440022,-153.53767362,0.00011338,2]
[330348655,1719287440034,-12427.85232638,0.00011338,2]
[330348656,1719287440044,-916.46,0.00011371,2]
[330348657,1719287440059,-170.36,0.00011422,2]
[330348658,1719287440068,-250.0,0.0001145,2]
[330348659,1719287440079,-7619.19,0.0001145,2]
[330348660,1719287440088,-150.0,0.00011451,2]
[330348661,1719287440098,-170.36,0.00011521,2]
[330348662,1719287440108,-2456.95,0.0001154,2]
[330348663,1719287440118,-4922.2,0.0001154,2]
[330348664,1719287440128,-1840.97,0.00011578,2]
[330348665,1719287440137,-170.36,0.0001162,2]
[330348666,1719287440147,-7737.20271866,0.0001163,2]
[330348667,1719287440160,-16162.79728134,0.0001163,2]
[330348668,1719287440170,-7859.54,0.0001168,2]
[330348669,1719287440180,-170.36,0.00011719,2]
[330348670,1719287440191,-327.84,0.00011746,2]
[330348671,1719287440201,-344.86,0.00011759,2]
[330348672,1719287440214,-1105.99,0.00011759,2]
[330348673,1719287440224,-750.88,0.00011797,2]
[330348674,1719287440234,-19074.53920685,0.000118,2]
[330348675,1719287440246,-2266.03037284,0.000118,2]
[330348676,1719287440256,-519.15636883,0.00011806,2]
[330348677,1719287440267,-250.0,0.00011807,2]
[330348678,1719287440278,-828.92054792,0.00011815,2]
[330348679,1719287440289,-690.10215601,0.00011816,2]
[330348680,1719287440300,-170.36,0.00011819,2]
[330348681,1719287440310,-170.36,0.00011918,2]
[330348682,1719287440320,-170.36,0.00012017,2]
[330348683,1719287440331,-200.0,0.00012127,2]
[330348684,1719287440345,-3922.4,0.00012127,2]
[330348685,1719287440356,-600.0,0.00012127,2]
[330348686,1719287440366,-828.92054792,0.00012531,2]
[330348687,1719287440377,-184.74,0.00012537,2]
[330348688,1719287440389,-172.99,0.00012556,2]
[330348689,1719287440400,-400.0,0.00012641,2]
[330348690,1719287440411,-500.0,0.000129,4]
[330348691,1719287440422,-831.2821671,0.000129,2]
[330348692,1719287440434,-831.28216706,0.000129,2]
[330348693,1719287440444,-168.86,0.00013172,2]
[330348694,1719287440454,-2791.42364177,0.00013234,2]
[330348695,1719287440468,-828.92054792,0.00013246,2]
[330348696,1719287440478,-948.05028955,0.00013341,2]
[330348697,1719287440503,-1695.10848443,0.00013341,2]
[330348698,1719287440513,-1830.37790722,0.00013346,2]
[330348699,1719287440535,-1048.582763,0.00013346,2]
[330348700,1719287440547,-2449.99999634,0.00013346,2]
[330348701,1719287440592,-64108.25778648,0.00013346,2]
[330348719,1719287442907,-298.93134934,0.00013345,2]
[330348728,1719287442956,-1900.18763625,0.00013345,2]
[330348730,1719287442968,-25577.43504696,0.00013346,2]
[330348732,1719287442979,-15903.8726,0.00013346,2]
[330348734,1719287442989,-430.47767915,0.00013419,2]
[330348736,1719287442999,-508.31194868,0.00013439,2]
[330348738,1719287443010,-346.826898,0.0001344,2]
[330348739,1719287443023,-1000.0,0.000135,2]
[330348740,1719287443033,-163.07222295,0.00013574,2]
[330348741,1719287443043,-3542.83304077,0.00013574,2]
[330348742,1719287443053,-600.0,0.00013643,2]
[330348743,1719287443063,-200.0,0.00013699,2]
[330348744,1719287443074,-1148.87,0.00013699,2]
[330348745,1719287443084,-1172.63,0.00013699,2]
[330348746,1719287443094,-10000.0,0.00013699,2]
[330348747,1719287443103,-1461.56,0.00013699,2]
[330348748,1719287443113,-1100.0,0.000137,5]
[330348749,1719287443123,-5360.38204589,0.0001379,2]
[330348750,1719287443133,-5360.38204581,0.0001379,2]
[330348751,1719287443142,-5360.38204581,0.0001379,2]
[330348752,1719287443152,-161.4549536,0.00013799,2]
[330348753,1719287443162,-1600.0,0.000138,5]
[330348754,1719287443173,-6957.23871223,0.0001387,2]
[330348755,1719287443182,-172.99,0.00013889,2]
[330348756,1719287443192,-1006.0,0.000139,2]
[330348757,1719287443202,-2200.0,0.000139,5]
[330348758,1719287443214,-4319.52224178,0.00013904,2]
[330348759,1719287443223,-828.92054792,0.00013961,2]
[330348760,1719287443233,-155.69120155,0.00013961,2]
[330348761,1719287443243,-178169.09554208,0.00014,2]